lending/lending_fUSD_20260124
["ID","MTS","AMOUNT","RATE_DAILY","PERIOD"]
[403221674,1769271047336,-194.93473072,0.0001751,2]
[403221675,1769271047345,-606.81558128,0.00017516,2]
[403221676,1769271047355,-2000.0,0.00017516,2]
[403221677,1769271047365,-2000.0,0.00017516,2]
[403221678,1769271047374,-1546.22489308,0.00017516,2]
[403221679,1769271047384,-2000.0,0.00017516,2]
[403221680,1769271047393,-1507.7084502,0.00017516,2]
[403221681,1769271047405,-2000.0,0.00017516,2]
[403221682,1769271047414,-2000.0,0.00017516,2]
[403221683,1769271047424,-2000.0,0.00017516,2]
[403221684,1769271047434,-2000.0,0.00017516,2]
[403221685,1769271047444,-2000.0,0.00017516,2]
[403221686,1769271047454,-2675.0,0.00017517,2]
[403221687,1769271047463,-2368.5,0.00017527,2]
[403221688,1769271047473,-478.76391924,0.0001753,2]
[403221689,1769271047483,-1262.73019669,0.00017534,2]
[403221690,1769271047492,-1000.0,0.00017534,2]
[403221691,1769271047502,-150.0,0.00017576,2]
[403221692,1769271047511,-359.76179104,0.00017585,2]
[403221693,1769271047520,-151.3661,0.000176,2]
[403221694,1769271047530,-1000.0,0.000176,2]
[403221695,1769271047539,-1565.85211666,0.00017609,2]
[403221696,1769271047548,-250.0,0.00017634,2]
[403221697,1769271047558,-12773.42330268,0.00017634,2]
[403221698,1769271047568,-22533.83278816,0.00017634,2]
[403221699,1769271047578,-33709.26619106,0.00017634,2]
[403221700,1769271047587,-45609.8346,0.00017634,2]
[403221701,1769271047597,-5404.10438685,0.0001764,2]
[403221702,1769271047606,-2368.5,0.00017645,2]
[403221703,1769271047616,-478.76391924,0.00017653,2]
[403221704,1769271047625,-3396.08042674,0.000177,2]
[403221705,1769271047634,-2000.0,0.000177,2]
[403221706,1769271047644,-866.0,0.00017729,2]
[403221707,1769271047653,-929.63069455,0.0001773,2]
[403221708,1769271047662,-1000.0,0.00017735,2]
[403221709,1769271047671,-1000.0,0.00017736,2]
[403221710,1769271047681,-1000.0,0.00017741,2]
[403221711,1769271047690,-1000.0,0.00017748,2]
[403221712,1769271047700,-1000.0,0.00017754,2]
[403221713,1769271047709,-1000.0,0.00017757,2]
[403221714,1769271047718,-172.8753019,0.00017758,3]
[403221715,1769271047727,-5888.0,0.00017764,2]
[403221716,1769271047737,-2368.5,0.00017764,2]
[403221717,1769271047746,-1000.0,0.00017775,2]
[403221718,1769271047755,-200.0,0.00017775,2]
[403221719,1769271047764,-478.76391924,0.00017777,2]
[403221720,1769271047774,-150.0,0.00017791,2]
[403221721,1769271047783,-1565.85211666,0.000178,2]
[403221722,1769271047793,-1000.0,0.00017801,2]
[403221723,1769271047802,-150.0,0.00017804,2]
[403221724,1769271047811,-500.0,0.00017808,2]
[403221725,1769271047821,-500.0,0.00017808,2]
[403221726,1769271047831,-150.0,0.00017808,2]
[403221727,1769271047840,-1000.0,0.00017808,2]
[403221728,1769271047850,-2000.0,0.0001782,2]
[403221729,1769271047859,-2000.0,0.0001782,2]
[403221730,1769271047869,-231.38369303,0.0001782,2]
[403221731,1769271047879,-5888.0,0.0001782,2]
[403221732,1769271047888,-150.0,0.00017821,2]
[403221733,1769271047897,-5800.0,0.00017823,2]
[403221734,1769271047907,-150.0,0.00017824,2]
[403221735,1769271047916,-96953.83922531,0.0001783,2]
[403221736,1769271047926,-1000.0,0.0001783,2]
[403221737,1769271047936,-5800.0,0.00017832,2]
[403221738,1769271047945,-500.0,0.00017836,2]
[403221739,1769271047954,-500.0,0.00017836,2]
[403221740,1769271047964,-5800.0,0.00017841,2]
[403221741,1769271047974,-200.0,0.00017843,2]
[403221742,1769271047983,-213.0,0.00017845,2]
[403221743,1769271047992,-25000.0,0.00017847,3]
[403221744,1769271048002,-5800.0,0.00017849,2]
[403221745,1769271048011,-1000.0,0.0001785,2]
[403221746,1769271048020,-1185.90178612,0.00017855,2]
[403221747,1769271048030,-200.0,0.00017855,2]
[403221748,1769271048039,-25000.0,0.00017856,3]
[403221749,1769271048048,-200.0,0.00017856,2]
[403221750,1769271048058,-5800.0,0.00017858,2]
[403221751,1769271048067,-1000.0,0.0001786,2]
[403221752,1769271048077,-1000.0,0.00017861,2]
[403221753,1769271048086,-1142.40362045,0.00017862,2]
[403221754,1769271048096,-233.51889341,0.00017862,2]
[403221755,1769271048106,-563.50315697,0.00017863,2]
[403221756,1769271048115,-500.0,0.00017863,2]
[403221757,1769271048124,-25000.0,0.00017865,3]
[403221758,1769271048134,-5800.0,0.00017866,2]
[403221759,1769271048143,-153.7074367,0.00017868,2]
[403221760,1769271048153,-25000.0,0.00017874,3]
[403221761,1769271048162,-5800.0,0.00017874,2]
[403221762,1769271048171,-2368.5,0.00017882,2]
[403221763,1769271048181,-25000.0,0.00017882,3]
[403221764,1769271048190,-5800.0,0.00017883,2]
[403221765,1769271048199,-1000.0,0.00017887,2]
[403221766,1769271048209,-25000.0,0.00017891,3]
[403221767,1769271048219,-5800.0,0.00017891,2]
[403221768,1769271048228,-500.0,0.00017899,2]
[403221769,1769271048238,-500.0,0.00017899,2]
[403221770,1769271048249,-7609.85651561,0.000179,3]
[403221771,1769271048259,-478.76391924,0.000179,2]
[403221772,1769271048269,-194.93473072,0.000179,2]
[403221773,1769271048279,-25000.0,0.000179,3]
[403221774,1769271048290,-5800.0,0.000179,2]
[403221775,1769271048299,-952.25318177,0.000179,2]
[403221776,1769271048309,-5175.68533025,0.000179,2]
[403221777,1769271048319,-14158.0246357,0.000179,2]
[403221778,1769271048564,-190.80620809,0.000179,3]
[403221779,1769271048574,-13995.31137832,0.000179,2]
[403221780,1769271048583,-21985.30537338,0.000179,2]
[403221781,1769271048593,-549.64135156,0.000179,2]
[403221782,1769271048603,-1000.0,0.00017902,2]
[403221783,1769271048612,-500.0,0.00017918,2]
[403221784,1769271048622,-1000.0,0.00017922,2]
[403221785,1769271048631,-1000.0,0.0001795,2]
[403221786,1769271048642,-1000.0,0.0001795,2]
[403221787,1769271048652,-200.0,0.0001795,2]
[403221788,1769271048661,-1000.0,0.00017955,2]
[403221789,1769271048671,-150.0,0.00017955,2]
[403221790,1769271048680,-400.0,0.00017957,2]
[403221791,1769271048689,-469.17519756,0.00017957,2]
[403221792,1769271048698,-150.0,0.00017959,2]
[403221793,1769271048708,-1000.0,0.00017959,2]
[403221794,1769271048717,-150.0,0.00017963,2]
[403221795,1769271048727,-393.45440139,0.00017965,2]
[403221796,1769271048737,-311.60217601,0.00017969,2]
[403221797,1769271048746,-500.0,0.0001797,2]
[403221798,1769271048756,-1000.0,0.0001797,2]
[403221799,1769271048766,-500.0,0.0001797,2]
[403221800,1769271048775,-1000.0,0.0001797,2]
[403221801,1769271048785,-500.0,0.0001797,2]
[403221802,1769271048795,-1000.0,0.0001797,2]
[403221803,1769271048805,-500.0,0.0001797,2]
[403221804,1769271048814,-500.0,0.0001797,2]
[403221805,1769271048824,-500.0,0.0001797,2]
[403221806,1769271048834,-601.31337833,0.0001797,2]
[403221807,1769271048844,-1000.0,0.0001797,2]
[403221808,1769271048854,-1000.0,0.0001797,2]
[403221809,1769271048864,-1000.0,0.0001797,2]
[403221810,1769271048874,-1425.13914229,0.0001797,2]
[403221811,1769271048884,-2675.0,0.00017971,2]
[403221812,1769271048895,-475.19870368,0.00017972,2]
[403221813,1769271048905,-15055.0,0.00017973,2]
[403221814,1769271048914,-500.0,0.00017973,2]
[403221815,1769271048924,-500.0,0.00017973,2]
[403221816,1769271048934,-163.10376799,0.00017973,2]
[403221817,1769271048943,-163.215227,0.00017973,2]
[403221818,1769271048953,-500.0,0.00017973,2]
[403221819,1769271048963,-161.7441045,0.00017973,2]
[403221820,1769271048973,-161.20666181,0.00017973,2]
[403221821,1769271048983,-333.14308792,0.00017973,2]
[403221822,1769271048992,-150.87644931,0.00017973,2]
[403221823,1769271049001,-500.0,0.00017973,2]
[403221824,1769271049011,-336.33747242,0.00017973,2]
[403221825,1769271049020,-500.0,0.00017973,2]
[403221826,1769271049030,-573.18204786,0.00017973,2]
[403221827,1769271049040,-500.0,0.00017973,2]
[403221828,1769271049050,-500.0,0.00017973,2]
[403221829,1769271049059,-500.0,0.00017973,2]
[403221830,1769271049069,-160.30101054,0.00017973,2]
[403221831,1769271049079,-500.0,0.00017973,2]
[403221832,1769271049089,-500.0,0.00017973,2]
[403221833,1769271049103,-500.0,0.00017973,2]
[403221834,1769271049112,-500.0,0.00017973,2]
[403221835,1769271049122,-500.0,0.00017973,2]
[403221836,1769271049131,-161.29695591,0.00017973,2]
[403221837,1769271049141,-208.11665623,0.00017973,2]
[403221838,1769271049151,-160.03318119,0.00017973,2]
[403221839,1769271049160,-500.0,0.00017973,2]
[403221840,1769271049170,-558.82608128,0.00017973,2]
[403221841,1769271049180,-160.04994992,0.00017973,2]
[403221842,1769271049190,-160.05242782,0.00017973,2]
[403221843,1769271049200,-521.52144255,0.00017973,2]
[403221844,1769271049210,-500.0,0.00017973,2]
[403221845,1769271049220,-180.05440168,0.00017973,2]
[403221846,1769271049229,-512.1744801,0.00017973,2]
[403221847,1769271049239,-500.0,0.00017973,2]
[403221848,1769271049248,-500.0,0.00017973,2]
[403221849,1769271049258,-500.0,0.00017973,2]
[403221850,1769271049267,-500.0,0.00017973,2]
[403221851,1769271049277,-300.0,0.00017973,2]
[403221852,1769271049287,-500.0,0.00017973,2]
[403221853,1769271049297,-500.0,0.00017973,2]
[403221854,1769271049307,-500.0,0.00017973,2]
[403221855,1769271049316,-500.0,0.00017973,2]
[403221856,1769271049326,-160.04899722,0.00017973,2]
[403221857,1769271049337,-500.0,0.00017973,2]
[403221858,1769271049346,-500.0,0.00017973,2]
[403221859,1769271049356,-500.0,0.00017973,2]
[403221860,1769271049365,-500.0,0.00017973,2]
[403221861,1769271049375,-160.95253726,0.00017973,2]
[403221862,1769271049385,-500.0,0.00017973,2]
[403221863,1769271049394,-162.86883444,0.00017973,2]
[403221864,1769271049407,-500.0,0.00017973,2]
[403221865,1769271049417,-500.0,0.00017973,2]
[403221866,1769271049426,-500.0,0.00017973,2]
[403221867,1769271049435,-500.0,0.00017973,2]
[403221868,1769271049447,-500.0,0.00017973,2]
[403221869,1769271049456,-500.0,0.00017973,2]
[403221870,1769271049466,-160.04998238,0.00017973,2]
[403221871,1769271049475,-160.05079201,0.00017973,2]
[403221872,1769271049485,-160.05036115,0.00017973,2]
[403221873,1769271049495,-500.0,0.00017973,2]
[403221874,1769271049504,-166.43972344,0.00017973,2]
[403221875,1769271049513,-161.03754612,0.00017973,2]
[403221876,1769271049522,-500.0,0.00017973,2]
[403221877,1769271049532,-500.0,0.00017973,2]
[403221878,1769271049541,-159.93585942,0.00017973,2]
[403221879,1769271049551,-500.0,0.00017973,2]
[403221880,1769271049561,-500.0,0.00017973,2]
[403221881,1769271049570,-162.47485834,0.00017973,2]
[403221882,1769271049580,-169.51216753,0.00017973,2]
[403221883,1769271049589,-161.91357387,0.00017973,2]
[403221884,1769271049600,-167.78129088,0.00017973,2]
[403221885,1769271049609,-508.83270828,0.00017973,2]
[403221886,1769271049618,-500.0,0.00017973,2]
[403221887,1769271049628,-500.0,0.00017973,2]
[403221888,1769271049637,-500.0,0.00017973,2]
[403221889,1769271049646,-500.0,0.00017973,2]
[403221890,1769271049655,-500.0,0.00017973,2]
[403221891,1769271049664,-500.0,0.00017973,2]
[403221892,1769271049673,-500.0,0.00017973,2]
[403221893,1769271049683,-500.0,0.00017973,2]
[403221894,1769271049692,-500.0,0.00017973,2]
[403221895,1769271049701,-335.93123339,0.00017973,2]
[403221896,1769271049711,-160.03828545,0.00017973,2]
[403221897,1769271049720,-158.06916035,0.00017973,2]
[403221898,1769271049729,-160.0507877,0.00017973,2]
[403221899,1769271049739,-500.0,0.00017973,2]
[403221900,1769271049748,-500.0,0.00017973,2]
[403221901,1769271049757,-500.0,0.00017973,2]
[403221902,1769271049767,-548.15607658,0.00017973,2]
[403221903,1769271049775,-485.5720463,0.00017973,2]
[403221904,1769271049784,-500.0,0.00017973,2]
[403221905,1769271049793,-500.0,0.00017973,2]
[403221906,1769271049802,-157.31967869,0.00017973,2]
[403221907,1769271049812,-500.0,0.00017973,2]
[403221908,1769271049821,-161.24700646,0.00017973,2]
[403221909,1769271049830,-500.0,0.00017973,2]
[403221910,1769271049839,-165.72236604,0.00017973,2]
[403221911,1769271049849,-500.0,0.00017973,2]
[403221912,1769271049859,-500.0,0.00017973,2]
[403221913,1769271049868,-500.0,0.00017973,2]
[403221914,1769271049877,-500.0,0.00017973,2]
[403221915,1769271049886,-208.57012707,0.00017973,2]
[403221916,1769271049895,-500.0,0.00017973,2]
[403221917,1769271049905,-500.0,0.00017973,2]
[403221918,1769271049914,-500.0,0.00017973,2]
[403221919,1769271049923,-164.56853003,0.00017973,2]
[403221920,1769271049932,-284.08136107,0.00017973,2]
[403221921,1769271049941,-308.89625283,0.00017973,2]
[403221922,1769271049951,-500.0,0.00017973,2]
[403221923,1769271049960,-511.74783648,0.00017973,2]
[403221924,1769271049970,-500.0,0.00017973,2]
[403221925,1769271049979,-150.0,0.00017973,2]
[403221926,1769271049988,-410.92119628,0.00017973,2]
[403221927,1769271049997,-150.0,0.00017981,2]
[403221928,1769271050006,-1000.0,0.00017981,2]
[403221929,1769271050016,-500.0,0.00017982,2]
[403221930,1769271050026,-150.0,0.0001799,2]
[403221931,1769271050035,-1185.90178612,0.0001799,2]
[403221932,1769271050046,-1185.90178612,0.0001799,2]
[403221933,1769271050056,-151.0,0.00017997,2]
[403221934,1769271050065,-150.0,0.00017999,2]
[403221935,1769271050076,-150.0,0.00017999,2]
[403221936,1769271050086,-156.86309582,0.00017999,2]
[403221937,1769271050095,-197.58025142,0.00017999,2]
[403221938,1769271050104,-500.0,0.00017999,2]
[403221939,1769271050115,-500.0,0.00017999,2]
[403221940,1769271050124,-500.0,0.00017999,2]
[403221941,1769271050136,-500.0,0.00017999,2]
[403221942,1769271050145,-551.95368049,0.00017999,2]
[403221943,1769271050155,-300.0,0.00017999,2]
[403221944,1769271050165,-300.0,0.00017999,2]
[403221945,1769271050175,-300.0,0.00017999,2]
[403221946,1769271050184,-500.0,0.00017999,2]
[403221947,1769271050193,-637.33762737,0.00017999,2]
[403221948,1769271050203,-300.0,0.00017999,2]
[403221949,1769271050212,-300.0,0.00017999,2]
[403221950,1769271050222,-300.0,0.00017999,2]
[403221951,1769271050232,-500.0,0.00017999,2]
[403221952,1769271050241,-500.0,0.00017999,2]
[403221953,1769271050250,-174.88782971,0.00017999,2]
[403221954,1769271050259,-300.0,0.00017999,2]
[403221955,1769271050269,-300.0,0.00017999,2]
[403221956,1769271050279,-80978.732289,0.00018,2]
[403221957,1769271050288,-4079215.00283518,0.00018,2]
[403221958,1769271050298,-2331746.86012977,0.00018,2]
[403221959,1769271051420,-0.03093488,0.00018,2]
[403221960,1769271051604,-1339.7552282,0.00018,2]
[403221961,1769271051616,-407.15963836,0.00018,2]
[403221962,1769271051629,-331.74999999,0.00018,2]
[403221963,1769271053735,-192.52791585,0.00013478,2]
[403221964,1769271053745,-18806.92530705,0.00018,2]
[403221965,1769271053887,-11653.57608574,0.00018,2]
[403221966,1769271055546,-1294.1865825,0.00018,2]
[403221967,1769271055558,-1166.43152022,0.00018,2]
[403221968,1769271112473,500.0,0.00011375,2]
[403221969,1769271136439,9500.01,0.00011375,2]
[403221970,1769271136514,10000.01,0.00011375,2]
[403221971,1769271136582,10000.01,0.00011375,2]
[403221972,1769271136652,10000.01,0.00011375,2]
[403221973,1769271136688,960499.96,0.00011375,2]
[403221980,1769271286257,10000.01,0.00011375,2]
[403221981,1769271286320,10000.01,0.00011375,2]
[403221982,1769271286383,10000.01,0.00011375,2]
[403221983,1769271286418,64328.22629433,0.00011375,2]
[403221984,1769271287203,-854.83135362,0.00011375,2]
[403221985,1769271290880,-234.62416572,0.00011375,2]
[403221986,1769271293551,-169.88767939,0.00011375,2]
[403221987,1769271295701,-435.73085123,0.00011375,2]
[403221988,1769271298720,-459.04048142,0.00011375,2]
[403221989,1769271303776,-221.0,0.00011374,2]
[403221990,1769271303853,-300.0,0.00011374,2]
[403221991,1769271303929,-300.0,0.00011374,2]
[403221992,1769271304003,-1200.0,0.00011374,2]
[403221993,1769271304073,-150.0,0.00011374,2]
[403221994,1769271307428,-300.0,0.00011374,2]
[403221995,1769271307647,-758.397495,0.00011318,2]
[403221996,1769271309906,-191.0,0.0001126,2]
[403221997,1769271342032,-4348.52256966,0.00011374,2]
[403221998,1769271343031,-1476.99859029,0.00011375,2]
[403222000,1769271344235,-10000.01,0.00011375,2]
[403222003,1769271378108,-683.1874342,0.00011374,2]
[403222004,1769271378181,-195.0,0.00011374,2]
[403222005,1769271378253,-250.0,0.00011375,2]
[403222006,1769271378632,-7743.6351316,0.00011375,2]
[403222007,1769271387145,-10000.01,0.00011375,2]
[403222008,1769271420484,-286.16054555,0.00011275,2]
[403222009,1769271423079,-218.46380298,0.00011275,2]
[403222010,1769271425031,-328.58081363,0.00011275,2]
[403222013,1769271451215,-319.213865,0.00011218,2]
[403222014,1769271453903,-389.35788943,0.00011218,2]
[403222015,1769271456456,-155.03186655,0.00011218,2]
[403222016,1769271458202,-182.90599654,0.00011218,2]
[403222019,1769271461738,-233.21668653,0.00011218,2]
[403222020,1769271465328,-523.22055326,0.00011218,2]
[403222021,1769271467359,-230.77829554,0.00011218,2]
[403222022,1769271470762,-280.40560413,0.00011218,2]
[403222023,1769271472118,-173.76893513,0.00011218,2]
[403222024,1769271474296,-325.94039195,0.00011218,2]
[403222025,1769271478948,-384.12171462,0.00011218,2]
[403222026,1769271481662,-445.04373616,0.00011218,2]
[403222028,1769271485730,-155.03186656,0.00011218,2]
[403222029,1769271488183,-160.48661795,0.00011218,2]
[403222030,1769271489704,-484.01642094,0.00011218,2]
[403222031,1769271491803,-302.46509455,0.00011218,2]
[403222032,1769271493885,-179.75030864,0.00011218,2]
[403222033,1769271495514,-25.65264152,0.00011218,2]
[403222034,1769271495542,-157.99542452,0.00011218,2]
[403222035,1769271495567,-157.99542452,0.00011218,2]
[403222036,1769271495592,-281.5813444,0.00011275,2]
[403222037,1769271495617,-588.36629673,0.00011275,2]
[403222038,1769271510715,150.0,0.00018564,120]
[403222043,1769271614134,152.01887917,0.00011,2]
[403222045,1769271633331,3945.06,0.00011066,2]
[403222048,1769271670787,1712.11057277,0.00011069,2]
[403222049,1769271670810,1930.89496223,0.00011069,2]
[403222052,1769271701353,-500.0,0.00011125,2]
[403222053,1769271701416,-250.0,0.00011172,2]
[403222054,1769271701477,-242.0,0.00011218,2]
[403222055,1769271701537,-415.03,0.00011253,2]
[403222056,1769271701596,-150.0,0.00011273,2]
[403222057,1769271701658,-300.0,0.00011273,2]
[403222058,1769271701718,-500.0,0.00011274,2]
[403222059,1769271701776,-1200.0,0.00011274,2]
[403222060,1769271702965,-2885.95,0.00011274,2]
[403222061,1769271703874,-2069.535,0.00011274,2]
[403222062,1769271703936,-354.074,0.00011274,2]
[403222063,1769271704000,-500.0,0.00011274,2]
[403222064,1769271704063,-500.0,0.00011274,2]
[403222065,1769271704131,-540.89351322,0.00011274,2]
[403222066,1769271704194,-380.63415321,0.00011274,2]
[403222067,1769271704260,-297.28993722,0.00011274,2]
[403222068,1769271704327,-215.1567927,0.00011274,2]
[403222069,1769271705071,-284.8432073,0.00011274,2]
[403222070,1769271713035,-540.89351322,0.00011274,2]
[403222071,1769271713104,-540.89351322,0.00011274,2]
[403222072,1769271713168,-576.55095385,0.00011274,2]
[403222073,1769271713244,-540.89351322,0.00011274,2]
[403222074,1769271713319,-540.89351322,0.00011274,2]
[403222075,1769271713391,-540.89351322,0.00011274,2]
[403222076,1769271713470,-540.89351322,0.00011274,2]
[403222077,1769271713545,-540.89351322,0.00011274,2]
[403222078,1769271713619,-540.89351322,0.00011274,2]
[403222079,1769271714707,-192.61188078,0.00011274,2]
[403222088,1769271931140,206.58,0.0001102,2]
[403222089,1769271960060,3671.71448971,8e-05,2]
[403222090,1769271960085,2137.46067528,8e-05,2]
[403222091,1769271963890,1621.5555307,0.00011,2]
[403222092,1769271979702,1852.42,0.00010976,2]
[403222095,1769272002087,197.75324596,0.00010976,2]
[403222096,1769272002109,3462.91675404,0.00010976,2]
[403222097,1769272043383,-152.13538667,0.00011174,2]
[403222098,1769272043453,-805.41310087,0.00011174,2]
[403222099,1769272043526,-300.0,0.00011219,2]
[403222100,1769272043599,-300.0,0.00011262,2]
[403222101,1769272043668,-1200.0,0.00011263,2]
[403222102,1769272043738,-300.0,0.00011263,2]
[403222103,1769272043808,-1200.0,0.00011263,2]
[403222104,1769272044575,-1484.91302492,0.00011264,2]
[403222105,1769272055472,-10000.01,0.00011264,2]
[403222108,1769272086930,500.0,0.00011,2]
[403222109,1769272087115,500.0,0.00011055,2]
[403222113,1769272106368,222.83287749,0.000107,2]
[403222119,1769272117315,177.578147,0.00011054,2]
[403222122,1769272164564,-572.99013325,0.0001111,2]
[403222123,1769272164585,-250.0,0.00011186,2]
[403222124,1769272164607,-76.60612169,0.00011263,2]
[403222130,1769272232057,-850.39387831,0.00011263,2]
[403222131,1769272232067,-1200.0,0.00011263,2]
[403222132,1769272232076,-242.0,0.00011263,2]
[403222133,1769272232086,-195.0,0.00011263,2]
[403222134,1769272232096,-28539.36295851,0.00011264,2]
[403222135,1769272232105,-195.0,0.00011267,2]
[403222136,1769272232115,-8761.39597983,0.00011268,2]
[403222137,1769272232124,-2500.0,0.00011268,2]
[403222138,1769272232135,-150.0,0.00011273,2]
[403222139,1769272232145,-348.28163244,0.00011274,2]
[403222141,1769272232154,-540.89351322,0.00011274,2]
[403222143,1769272232163,-540.89351322,0.00011274,2]
[403222145,1769272232172,-540.89351322,0.00011274,2]
[403222147,1769272232181,-540.89351322,0.00011274,2]
[403222149,1769272232191,-540.89351322,0.00011274,2]
[403222151,1769272232200,-540.89351322,0.00011274,2]
[403222153,1769272232209,-540.89351322,0.00011274,2]
[403222155,1769272232219,-540.89351322,0.00011274,2]
[403222157,1769272232228,-540.89351322,0.00011274,2]
[403222158,1769272232238,-540.89351322,0.00011274,2]
[403222159,1769272232247,-540.89351322,0.00011274,2]
[403222160,1769272232256,-540.89351322,0.00011274,2]
[403222161,1769272232266,-540.89351322,0.00011274,2]
[403222162,1769272232275,-540.89351322,0.00011274,2]
[403222163,1769272232285,-540.89351322,0.00011274,2]
[403222164,1769272232294,-540.89351322,0.00011274,2]
[403222165,1769272232303,-540.89351322,0.00011274,2]
[403222166,1769272232313,-540.89351322,0.00011274,2]
[403222167,1769272232322,-540.89351322,0.00011274,2]
[403222168,1769272232332,-540.89351322,0.00011274,2]
[403222169,1769272232341,-540.89351322,0.00011274,2]
[403222170,1769272232350,-540.89351322,0.00011274,2]
[403222171,1769272232360,-540.89351322,0.00011274,2]
[403222172,1769272232369,-540.89351322,0.00011274,2]
[403222173,1769272232379,-540.89351322,0.00011274,2]
[403222174,1769272232388,-540.89351322,0.00011274,2]
[403222175,1769272232397,-540.89351322,0.00011274,2]
[403222176,1769272232407,-540.89351322,0.00011274,2]
[403222177,1769272232416,-540.89351322,0.00011274,2]
[403222178,1769272232426,-540.89351322,0.00011274,2]
[403222179,1769272232436,-540.89351322,0.00011274,2]
[403222180,1769272232447,-540.89351322,0.00011274,2]
[403222181,1769272232457,-540.89351322,0.00011274,2]
[403222182,1769272232466,-540.89351322,0.00011274,2]
[403222183,1769272232476,-540.89351322,0.00011274,2]
[403222184,1769272232485,-540.89351322,0.00011274,2]
[403222185,1769272232494,-540.89351322,0.00011274,2]
[403222186,1769272232504,-540.89351322,0.00011274,2]
[403222187,1769272232513,-540.89351322,0.00011274,2]
[403222188,1769272232523,-540.89351322,0.00011274,2]
[403222189,1769272232532,-1212.58658671,0.00011274,2]
[403222190,1769272232541,-1212.58658671,0.00011274,2]
[403222191,1769272232551,-1212.58658671,0.00011274,2]
[403222192,1769272232560,-1212.58658671,0.00011274,2]
[403222193,1769272232569,-1212.58658671,0.00011274,2]
[403222194,1769272232579,-1212.58658671,0.00011274,2]
[403222195,1769272232589,-1212.58658671,0.00011274,2]
[403222196,1769272232598,-1212.58658671,0.00011274,2]
[403222197,1769272232608,-1212.58658671,0.00011274,2]
[403222198,1769272232618,-1212.58658671,0.00011274,2]
[403222199,1769272232628,-1212.58658671,0.00011274,2]
[403222200,1769272232638,-1212.58658671,0.00011274,2]
[403222201,1769272232647,-1212.58658671,0.00011274,2]
[403222202,1769272232657,-1212.58658671,0.00011274,2]
[403222203,1769272232667,-1212.58658671,0.00011274,2]
[403222204,1769272232676,-1212.58658671,0.00011274,2]
[403222205,1769272232685,-1212.58658671,0.00011274,2]
[403222206,1769272232695,-1212.58658671,0.00011274,2]
[403222207,1769272232704,-1212.58658671,0.00011274,2]
[403222208,1769272232714,-1212.58658671,0.00011274,2]
[403222209,1769272232724,-1212.58658671,0.00011274,2]
[403222210,1769272232733,-1212.58658671,0.00011274,2]
[403222211,1769272232746,-1212.58658671,0.00011274,2]
[403222212,1769272232755,-1212.58658671,0.00011274,2]
[403222213,1769272232764,-1212.58658671,0.00011274,2]
[403222214,1769272232774,-1212.58658671,0.00011274,2]
[403222215,1769272232786,-1212.58658671,0.00011274,2]
[403222216,1769272232795,-1212.58658671,0.00011274,2]
[403222217,1769272232805,-1212.58658671,0.00011274,2]
[403222218,1769272232815,-1212.58658671,0.00011274,2]
[403222219,1769272232825,-1212.58658672,0.00011274,2]
[403222220,1769272232834,-1212.58658672,0.00011274,2]
[403222221,1769272232843,-1212.58658672,0.00011274,2]
[403222222,1769272232853,-1212.58658672,0.00011274,2]
[403222223,1769272232862,-1212.58658672,0.00011274,2]
[403222224,1769272232871,-1212.58658672,0.00011274,2]
[403222225,1769272232880,-1212.58658672,0.00011274,2]
[403222226,1769272232889,-1212.58658672,0.00011274,2]
[403222227,1769272232899,-1212.5865867,0.00011274,2]
[403222228,1769272232908,-1225.28784471,0.00011274,2]
[403222229,1769272232918,-18067.59929786,0.00011275,2]
[403222230,1769272232927,-1161.89197677,0.00011275,2]
[403222231,1769272232937,-9454.21,0.00011368,2]
[403222232,1769272232946,-150.99,0.00011368,2]